bitfinex/quotes_ETHUSD_20250508
["timestamp","ask_amount","ask_price","bid_price","bid_amount"]
[1746739206622,4.53432483,2205.4,2203.4,4.53844059]
[1746739206820,4.53613843,2204.6,2203.4,0.34303951]
[1746739207054,4.5361461,2204.6,2203.9,4.53731856]
[1746739207361,0.7589,2205.5,2203.6,4.53792765]
[1746739207362,16.34,2205.7,2204.1,4.53699922]
[1746739207564,16.34,2205.7,2204.3,4.53658757]
[1746739207565,0.05668125,2205.6,2204.3,4.53658757]
[1746739207868,4.53477474,2205.2,2204.7,3.0]
[1746739208158,0.05668615,2205.5,2204.9,3.0]
[1746739208365,0.05668615,2205.5,2204.8,0.02268014]
[1746739208366,4.53292027,2206.1,2205.1,4.53494172]
[1746739208546,4.53258439,2206.3,2205.6,4.53380528]
[1746739208725,4.53175323,2206.7,2205.6,4.53375378]
[1746739208928,4.58856241,2206.6,2205.1,3.55]
[1746739209132,0.05665845,2206.6,2205.4,3.0]
[1746739209333,4.53250508,2206.3,2205.1,0.355]
[1746739209541,4.58876633,2206.5,2205.1,3.905]
[1746739209721,4.53247518,2206.3,2205.5,4.53405559]
[1746739209926,4.5887394,2206.5,2205.5,4.53405559]
[1746739209927,0.05665744,2206.5,2205.5,4.53400685]
[1746739210152,4.533622,2205.8,2205.0,4.53503061]
[1746739210355,0.85696795,2206.1,2205.1,0.02264375]
[1746739210522,4.53329706,2205.9,2205.1,3.0]
[1746739210722,4.53329706,2205.9,2204.3,0.79334506]
[1746739210723,4.59024066,2205.8,2204.3,0.79334506]
[1746739210924,4.53549433,2204.9,2204.3,4.873944]
[1746739211326,4.59123129,2205.3,2204.3,0.33741927]
[1746739211525,4.53592519,2204.7,2204.1,4.53685472]
[1746739211722,4.53494172,2205.1,2204.1,3.0]
[1746739211928,4.53475945,2205.2,2204.2,0.02269536]
[1746739212134,4.53475945,2205.2,2204.2,4.53663295]
[1746739212135,4.53557057,2204.8,2204.2,4.53663295]
[1746739212344,4.53319585,2206.0,2204.7,4.53574888]
[1746739212550,20.86761348,2206.3,2204.4,4.53637429]
[1746739212725,4.53309156,2206.0,2205.1,3.0]
[1746739212941,4.53350258,2205.8,2204.9,7.53534583]
[1746739213145,4.53288608,2206.1,2205.1,3.0]
[1746739213467,4.53299346,2206.1,2205.5,7.53400922]
[1746739213677,4.53369409,2205.8,2205.2,3.355]
[1746739213845,0.05665939,2206.2,2205.2,7.5346334]
[1746739214171,0.06166272,2206.4,2204.4,3.0]
[1746739214475,4.53247518,2206.3,2204.8,3.0]
[1746739214656,4.53357711,2205.8,2205.2,7.53461185]
[1746739214854,0.005,2205.3,2205.2,3.0]
[1746739215060,0.005,2205.3,2205.2,14.89196607]
[1746739215362,0.005,2205.3,2205.2,13.55801607]
[1746739215559,0.005,2205.3,2205.2,11.96000163]
[1746739215735,0.005,2205.3,2205.2,7.86952163]
[1746739216131,0.005,2205.3,2205.2,3.33478556]
[1746739216340,0.005,2205.3,2205.2,7.86952163]
[1746739216872,0.005,2205.3,2205.2,14.79332963]
[1746739217038,0.005,2205.3,2205.2,13.93479363]
[1746739217436,0.005,2205.3,2205.2,3.33478556]
[1746739218414,0.005,2205.3,2205.2,10.90648363]
[1746739218579,0.005,2205.3,2205.2,10.06946163]
[1746739219073,4.53384586,2205.7,2205.3,3.0]
[1746739219230,0.05666911,2206.0,2205.2,0.33478556]
[1746739219438,0.06166675,2206.4,2204.7,3.0]
[1746739219635,0.00244885,2205.4,2205.3,3.0]
[1746739219835,0.00244885,2205.4,2205.3,4.53453044]
[1746739220252,0.00244885,2205.4,2205.3,8.0498]
[1746739220535,0.00244885,2205.4,2204.8,0.75359505]
[1746739220731,4.53504253,2205.1,2204.9,0.02266912]
[1746739220936,4.53500869,2205.1,2204.9,0.34761971]
[1746739221158,4.53477342,2205.2,2204.7,7.55830627]
[1746739221358,4.53477342,2205.2,2204.7,4.5584303]
[1746739221590,0.00244885,2205.4,2204.7,3.0]
[1746739221741,0.05912955,2205.4,2204.7,3.0]
[1746739221936,0.05912955,2205.4,2204.8,4.53540226]
[1746739221937,4.53688143,2205.4,2204.8,4.53540226]
[1746739222154,0.00244885,2205.4,2204.8,4.53536262]
[1746739222355,4.53680197,2205.4,2204.9,4.53522915]
[1746739222555,4.53460325,2205.3,2204.8,3.34306143]
[1746739222868,0.00244885,2205.4,2204.8,0.34306143]
[1746739223066,4.53510733,2205.1,2204.7,3.0]
[1746739223293,4.53567504,2204.8,2204.2,12.86129548]
[1746739223494,4.53543185,2204.9,2204.3,4.53642172]
[1746739223678,4.53658757,2204.3,2204.2,7.87095835]
[1746739223857,0.0566909,2204.8,2204.2,7.87095835]
[1746739224060,5.36518688,2204.8,2204.2,0.33625803]
[1746739224262,4.5364167,2204.4,2203.9,0.02271572]
[1746739224469,4.53720508,2204.0,2203.4,7.87095835]
[1746739224675,0.8296,2204.8,2203.5,3.0]
[1746739224881,4.53719191,2204.1,2203.5,3.0]
[1746739225077,4.53696402,2204.2,2203.6,4.537912]
[1746739225291,4.53703318,2204.1,2203.7,3.02272725]
[1746739225451,4.53732614,2204.0,2203.5,3.0]
[1746739225655,4.53706382,2204.1,2203.5,4.53812583]
[1746739225960,4.53706382,2204.1,2203.7,3.0]
[1746739226154,4.53725425,2204.0,2203.7,3.0]
[1746739226354,0.05671099,2204.4,2203.5,7.53812551]
[1746739226596,4.5371658,2204.1,2203.6,0.02272663]
[1746739226792,4.53755861,2203.9,2203.4,0.55760646]
[1746739227093,4.53724543,2204.0,2203.4,0.55760646]
[1746739227094,4.5357645,2204.7,2203.4,12.40924783]
[1746739227257,4.59271758,2204.6,2203.6,4.53783372]
[1746739227452,4.53692099,2204.2,2203.5,4.53810464]
[1746739227764,5.36516659,2204.8,2203.4,11.20300688]
[1746739227765,0.05670974,2204.7,2204.0,3.0]
[1746739228299,4.53535307,2204.9,2203.9,4.53735022]
[1746739228593,5.30633729,2205.2,2203.9,4.53735022]
[1746739228594,4.59225748,2204.8,2204.0,3.0]
[1746739228897,4.5363808,2204.5,2204.0,3.0]
[1746739229190,4.53649057,2204.4,2204.0,3.0]
[1746739229595,4.53666101,2204.3,2204.0,3.0]
[1746739229794,4.53669393,2204.3,2204.0,3.0]
[1746739229960,4.5369134,2204.2,2204.0,3.0]
[1746739230157,4.53669487,2204.3,2204.0,3.0]
[1746739230571,0.05670835,2204.9,2204.0,3.0]
[1746739230767,4.53629273,2204.5,2204.0,4.53710031]
[1746739231183,5.30619671,2205.2,2204.5,9.07231139]
[1746739231498,4.53688179,2205.4,2205.0,3.0]
[1746739231806,4.69035609,2205.3,2204.8,4.53542974]
[1746739232098,0.15579206,2205.3,2205.0,4.53496853]
[1746739232298,0.15579206,2205.3,2204.8,4.53541714]
[1746739232299,4.69032663,2205.3,2204.8,4.53541714]
[1746739232459,0.15579206,2205.3,2204.7,3.0]
[1746739232660,4.5368699,2205.4,2204.5,7.87095835]
[1746739232903,0.15534094,2205.3,2204.8,3.0]
[1746739233105,4.53512045,2205.1,2204.9,0.02267948]
[1746739233265,4.53512045,2205.1,2204.6,3.0]
[1746739233266,4.68987414,2205.0,2204.7,0.02268062]
[1746739233605,4.53524698,2205.0,2204.6,3.0]
[1746739233963,0.15552622,2204.9,2204.6,3.0]
[1746739234610,4.53525327,2205.0,2204.6,3.0]
[1746739234769,4.5350347,2205.1,2204.6,7.53595362]
[1746739234966,0.15552622,2204.9,2204.6,7.53595362]
[1746739235301,4.53460155,2205.3,2204.8,3.0]
[1746739235461,4.53453044,2205.3,2204.8,3.0]
[1746739235662,4.53457258,2205.3,2204.8,3.0]
[1746739235906,4.53453044,2205.3,2204.8,3.0]
[1746739236089,4.53494295,2205.1,2204.8,3.0]
[1746739236258,4.5348568,2205.2,2204.8,3.0]
[1746739236463,4.5350326,2205.1,2204.8,3.0]
[1746739236664,4.5934779,2205.4,2204.8,3.0]
[1746739236665,4.59358872,2205.4,2204.8,3.0]
[1746739236980,4.53483986,2205.2,2204.8,3.0]
[1746739237427,0.00244885,2205.4,2205.0,3.0]
[1746739237587,0.00244885,2205.4,2205.1,4.53483479]
[1746739237781,0.00244885,2205.4,2205.3,3.0]
[1746739238018,0.00244885,2205.4,2205.2,3.0]
[1746739238394,0.00244885,2205.4,2205.0,3.0]
[1746739238799,0.00244885,2205.4,2205.0,7.53505652]
[1746739239021,0.00244885,2205.4,2205.2,4.53456588]
[1746739239186,0.00244885,2205.4,2205.3,3.0]
[1746739239621,0.00244885,2205.4,2204.9,12.40621259]
[1746739239924,0.00244885,2205.4,2205.0,3.0]
[1746739240125,4.53454922,2205.3,2205.0,3.0]
[1746739240723,0.00244885,2205.4,2205.2,3.0]
[1746739241086,0.00244885,2205.4,2205.1,0.02266742]
[1746739241321,0.00244885,2205.4,2205.2,3.0]
[1746739241487,0.00244885,2205.4,2205.1,4.5574861]
[1746739241687,0.00244885,2205.4,2205.1,4.55760079]
[1746739241903,0.11703968,2205.3,2205.1,4.55760079]
[1746739242117,0.11703968,2205.3,2205.1,0.02266742]
[1746739242318,0.11703968,2205.3,2204.4,7.87095835]
[1746739242525,0.00244885,2205.4,2204.6,0.55]
[1746739242722,0.00244885,2205.4,2204.8,7.87095835]
[1746739242924,0.00244885,2205.4,2205.0,3.0]
[1746739243090,0.12070692,2205.3,2205.1,0.0226577]
[1746739243286,0.00244885,2205.4,2205.1,0.02265839]
[1746739243624,0.00244885,2205.4,2205.0,7.53508138]
[1746739243625,0.12070692,2205.3,2205.0,3.0]
[1746739243929,4.53479201,2205.2,2205.0,3.0]
[1746739244116,0.12017923,2205.1,2205.0,3.0]
[1746739244312,0.00244885,2205.4,2205.0,3.0]
[1746739244495,0.12070692,2205.3,2205.1,0.02265769]
[1746739244700,0.00244885,2205.4,2204.0,18.32655901]
[1746739244901,0.00244885,2205.4,2205.0,3.0]
[1746739245106,4.65536398,2205.3,2204.8,4.53546973]
[1746739245728,4.534751,2205.2,2204.8,4.53546973]
[1746739245930,0.00244885,2205.4,2204.8,4.53546973]
[1746739245931,0.12017923,2205.1,2204.8,4.53546973]
[1746739246234,4.53463661,2205.3,2204.8,4.53545229]
[1746739246400,4.53503919,2205.1,2204.6,3.0]
[1746739246599,4.53503919,2205.1,2204.7,10.27767714]
[1746739246800,0.11991534,2205.0,2204.8,2.358905]
[1746739246996,0.11991534,2205.0,2204.7,4.57471514]
[1746739247197,0.11991534,2205.0,2204.8,3.0]
[1746739247438,0.11991534,2205.0,2204.8,7.53542105]
[1746739247635,4.53466082,2205.3,2204.8,7.53542105]
[1746739247833,0.11824058,2204.9,2204.8,3.0]
[1746739248043,0.00244885,2205.4,2205.0,4.53514739]
[1746739248201,0.05667494,2206.2,2205.2,0.55]
[1746739248399,4.53134815,2206.9,2205.7,3.0]
[1746739248623,4.53216927,2206.5,2206.1,3.0]
[1746739248829,0.05665547,2207.1,2206.3,3.0]
[1746739248830,4.53168222,2206.7,2206.3,3.0]
[1746739249017,4.53153006,2206.8,2206.3,7.53247518]
[1746739249212,0.10353044,2206.4,2206.3,3.0]
[1746739249546,0.10465839,2206.4,2206.3,10.745321]
[1746739249728,0.09965839,2206.4,2206.3,15.55733903]
[1746739250045,4.52982849,2207.6,2207.1,4.53070947]
[1746739250215,4.52960094,2207.7,2207.2,0.02255245]
[1746739250535,4.53042068,2207.4,2207.2,0.33944514]
[1746739250736,4.53042068,2207.4,2206.6,0.55]
[1746739250737,0.08563931,2207.3,2206.6,0.55]
[1746739250949,4.58549916,2208.1,2207.2,3.0]
[1746739251239,4.52969704,2207.7,2207.2,3.0]
[1746739251419,4.52969704,2207.7,2207.2,4.53059399]
[1746739251622,0.14438213,2208.0,2207.3,7.87095835]
[1746739251623,0.08659843,2207.6,2207.3,7.87095835]
[1746739251943,5.73836266,2208.4,2207.5,10.87095835]
[1746739251944,4.52844958,2208.3,2207.5,10.87095835]
[1746739252248,0.08654062,2208.2,2207.7,7.52948376]
[1746739252453,22.69178553,2208.8,2207.5,10.19544727]
[1746739252454,0.7833,2209.3,2208.0,3.0]
[1746739252751,0.14390866,2209.2,2208.0,3.34716521]
[1746739252949,0.14390866,2209.2,2208.3,3.0]
[1746739253251,0.14390866,2209.2,2208.8,7.87095835]
[1746739253435,0.0873134,2209.2,2208.9,7.52710518]
[1746739253751,5.73836266,2209.5,2208.9,3.0]
[1746739253956,0.08665784,2209.4,2208.9,3.0]
[1746739254158,4.52643725,2209.3,2208.9,3.0]
[1746739254318,0.08711702,2209.2,2208.9,3.0]
[1746739254512,4.52643912,2209.3,2208.9,3.0]
[1746739254716,0.09692115,2209.2,2208.9,3.0]
[1746739254953,5.73836266,2209.5,2208.9,3.0]
[1746739255127,4.52666619,2209.2,2208.9,3.0]
[1746739255339,4.62356282,2209.4,2208.5,3.21314846]
[1746739255340,0.09665812,2209.1,2208.5,3.21314846]
[1746739255623,4.52810378,2208.5,2208.0,8.21812356]
[1746739255818,4.52792296,2208.6,2208.1,3.0]
[1746739256020,0.09481624,2208.4,2208.0,8.42415087]
[1746739256318,4.5271402,2208.9,2208.0,8.21812356]
[1746739256547,4.52828601,2208.4,2208.0,8.21812356]
[1746739256731,0.05659254,2208.8,2208.0,8.21812356]
[1746739256942,4.52848887,2208.3,2208.0,8.21812356]
[1746739257150,0.09397332,2208.2,2208.1,0.02251463]
[1746739257466,4.52870896,2208.2,2208.0,0.34716521]
[1746739257619,4.52869919,2208.2,2208.0,0.34716521]
[1746739257815,0.09291632,2208.1,2207.7,4.52957778]
[1746739258122,4.52631656,2209.4,2207.6,8.20647455]
[1746739258123,4.58431249,2208.7,2207.6,8.20647455]
[1746739258346,4.52951146,2207.8,2207.6,8.20647455]
[1746739258541,0.09079672,2207.7,2207.6,8.20647455]
[1746739258749,4.52960094,2207.7,2207.6,0.3355162]
[1746739259065,4.53062703,2207.2,2205.8,12.32633902]
[1746739259258,4.53062703,2207.2,2205.8,14.08473959]
[1746739259259,4.53297064,2206.1,2205.8,14.08473959]
[1746739259563,4.53258599,2206.3,2205.8,7.87095835]
[1746739259725,4.53279348,2206.2,2205.8,8.21038064]
[1746739259920,4.53265318,2206.3,2205.8,8.21038064]
[1746739260260,4.53271548,2206.2,2205.8,8.21038064]
[1746739260466,0.05665383,2206.6,2205.8,8.21038064]
[1746739260768,0.05665175,2207.4,2206.3,3.0]
[1746739261061,0.7986,2208.3,2207.2,3.0]
[1746739261260,0.7986,2208.8,2207.8,4.52937675]
[1746739261426,4.52775513,2208.6,2207.9,0.02251708]
[1746739261752,4.52837023,2208.3,2207.8,0.02251503]
[1746739261965,4.52816636,2208.4,2207.8,0.02251503]
[1746739262129,4.52789773,2208.6,2208.0,3.0]
[1746739262329,4.52803455,2208.5,2208.1,0.02250598]
[1746739262548,4.52764458,2208.7,2207.8,0.45519801]
[1746739262858,4.52854004,2208.3,2207.8,0.45519801]
[1746739263165,0.05660436,2208.2,2207.2,3.0]
[1746739263375,4.52952741,2207.8,2207.2,3.0]
[1746739263558,0.7986,2208.8,2207.5,7.87095835]
[1746739263754,4.52812757,2208.5,2207.8,4.52926155]
[1746739263955,4.52783451,2208.6,2207.9,0.02250684]
[1746739264127,20.84027015,2209.4,2208.1,3.0]
[1746739264329,4.58293519,2209.3,2208.3,3.0]
[1746739264531,4.52666687,2209.2,2208.5,3.0]
[1746739264836,4.61239815,2209.1,2208.3,3.0]
[1746739265056,0.085617,2209.1,2208.4,3.0]
[1746739265260,4.52674308,2209.1,2208.5,0.02248462]
[1746739265447,0.7986,2209.5,2208.3,3.02248565]
[1746739265659,0.09262569,2209.0,2208.9,3.0]
[1746739265972,0.10150665,2209.0,2208.8,3.0]
[1746739266192,0.8059,2211.1,2209.2,6.76059292]
[1746739266372,4.52342473,2210.8,2210.1,3.0]
[1746739266579,4.52339946,2210.8,2210.2,0.0223942]
[1746739266893,0.12657011,2210.7,2210.4,7.87095835]
[1746739267094,0.8059,2211.6,2210.5,0.02236983]
[1746739267240,0.05653162,2211.5,2210.3,4.5464666]
[1746739267442,0.005,2211.9,2211.0,7.87095835]
[1746739267643,0.005,2211.9,2211.4,7.87095835]
[1746739267990,0.005,2211.9,2211.8,12.94216279]
[1746739268301,8.02356426,2213.1,2211.9,0.55]
[1746739268594,11.75026509,2213.6,2213.4,0.55]
[1746739268595,3.4200386,2213.6,2213.4,0.55]
[1746739268901,1.72260435,2213.6,2213.5,18.2715085]
[1746739269083,10.16899835,2214.3,2213.7,4.51732393]
[1746739269295,11.96352747,2214.5,2214.3,3.0]
[1746739269456,0.005,2214.8,2214.7,5.06528423]
[1746739269658,0.026,2217.4,2214.7,5.08743039]
[1746739269898,0.02350003,2218.3,2217.8,4.50897285]
[1746739270065,0.02350003,2219.4,2217.8,23.30796885]
[1746739270266,11.01156452,2217.9,2217.8,28.26459489]
[1746739270479,3.11066132,2218.3,2218.2,11.05815976]
[1746739270682,0.04507956,2219.0,2218.4,4.50775333]
[1746739270883,0.04507956,2219.0,2218.6,3.0]
[1746739271205,0.005,2221.4,2220.3,7.50389586]
[1746739271358,0.005,2221.4,2220.3,48.205666]
[1746739271558,0.005,2221.4,2220.3,33.3955]
[1746739271763,0.005,2221.4,2220.3,8.62337879]
[1746739271961,0.005,2221.4,2220.8,4.50288184]
[1746739272199,0.005,2221.4,2221.3,15.26327232]
[1746739272395,0.005,2221.4,2221.3,7.50186827]
[1746739272600,0.005,2221.4,2221.3,30.02984405]
[1746739272782,0.079615,2222.0,2221.4,3.0]
[1746739272984,0.079615,2222.0,2221.4,4.58176924]
[1746739273292,0.08702204,2223.9,2222.2,2.23524601]
[1746739273593,0.0307889,2223.9,2222.3,0.5235246]
[1746739273803,0.0307889,2223.9,2222.7,3.0]
[1746739273957,0.09048327,2223.8,2223.7,7.49700948]
[1746739274152,0.2,2226.0,2224.4,4.49559431]
[1746739274357,0.2,2226.0,2224.4,12.29263841]
[1746739274598,0.2,2226.0,2224.5,4.49520682]
[1746739274891,0.2,2226.0,2224.8,3.0]
[1746739275100,0.2,2226.0,2224.4,1.45151952]
[1746739275101,0.2,2226.0,2224.9,15.169311]
[1746739275311,0.13126042,2225.9,2224.5,0.6782034]
[1746739275486,0.13126042,2225.9,2224.9,3.0]
[1746739275687,0.13126042,2225.9,2225.1,3.0]
[1746739275688,18.13126042,2225.9,2225.1,3.0]
[1746739275859,22.62387599,2225.9,2225.2,25.59393372]
[1746739276060,18.13126042,2225.9,2225.3,2.680205]
[1746739276402,18.13126042,2225.9,2225.4,3.0]
[1746739276567,13.58052946,2225.9,2225.5,4.669758]
[1746739276761,0.12203289,2225.8,2225.1,3.0]
[1746739276957,0.12203289,2225.8,2225.4,0.67788201]
[1746739277188,0.2,2226.0,2224.4,0.33874736]
[1746739277511,0.11226253,2225.9,2224.5,3.0]
[1746739277654,0.11226253,2225.9,2223.0,10.827]
[1746739277655,16.24,2225.9,2224.7,3.0]
[1746739277861,0.11154567,2225.8,2224.8,0.08219037]
[1746739278183,0.11154567,2225.8,2224.4,3.0]
[1746739278490,0.11154567,2225.8,2223.8,3.0]
[1746739278495,0.7954,2225.6,2223.8,3.0]
[1746739278699,0.11389426,2225.5,2221.6,4.50113829]
[1746739278913,0.0561984,2225.4,2222.3,3.0]
[1746739279058,0.0561984,2225.4,2222.4,4.49964002]
[1746739279258,0.2,2226.0,2223.3,3.0]
[1746739279463,0.2,2226.0,2223.8,3.0]
[1746739279464,4.49407365,2225.2,2223.8,3.0]
[1746739279704,3.0,2225.0,2222.1,0.7931]
[1746739279858,27.13526835,2225.1,2222.1,0.7931]
[1746739279859,3.01352684,2224.9,2222.1,0.7931]
[1746739280064,4.49478604,2224.8,2222.3,0.34086923]
[1746739280413,0.55,2224.4,2221.6,0.33931814]
[1746739280709,3.0,2223.2,2220.5,0.7931]
[1746739280914,4.50395547,2220.3,2220.1,0.33213591]
[1746739281068,27.12954929,2223.1,2219.8,0.7931]
[1746739281069,4.50456408,2220.0,2219.8,0.7931]
[1746739281267,16.222,2220.5,2219.1,0.7931]
[1746739281763,4.50369302,2220.4,2218.6,3.0]
[1746739281967,16.222,2220.5,2218.6,3.0]
[1746739281968,16.222,2220.5,2218.6,3.3371601]
[1746739282167,16.222,2220.5,2218.3,0.7931]
[1746739282512,10.814,2221.3,2218.3,0.7931]
[1746739282513,21.51216102,2221.5,2218.9,3.0]
[1746739282662,0.7936,2221.5,2219.4,4.5056718]
[1746739282863,0.7936,2221.5,2219.3,0.7931]
[1746739283175,4.50470133,2220.0,2219.4,0.37931]
[1746739283376,4.50551142,2219.6,2218.7,0.7931]
[1746739283630,27.028,2219.5,2217.1,0.7931]
[1746739283778,4.50942265,2217.6,2217.1,3.7931]
[1746739283975,16.217,2218.2,2217.2,2.977183]
[1746739284282,4.50856627,2218.0,2216.8,3.44793841]
[1746739284517,4.51001927,2217.3,2216.8,0.44793841]
[1746739284683,16.22,2218.0,2216.8,0.44793841]
[1746739285082,4.50801426,2218.3,2216.8,7.95891471]
[1746739285428,16.22,2218.2,2216.8,0.44793841]
[1746739285629,16.22,2218.2,2216.8,3.44793841]
[1746739285928,16.22,2218.2,2216.9,47.90104]
[1746739286149,16.22,2218.2,2216.2,4.51222297]
[1746739286150,19.50238055,2218.2,2215.6,0.8154]
[1746739286343,14.99404897,2218.2,2215.6,0.8154]
[1746739286490,4.50897285,2217.8,2215.6,0.8154]
[1746739286838,16.22,2217.9,2215.9,3.0]
[1746739286988,16.22,2217.9,2215.6,0.8154]
[1746739287189,0.55,2217.4,2215.1,3.0]
[1746739287489,0.55,2217.4,2215.0,0.8154]
[1746739287490,4.5105999,2217.0,2215.0,0.8154]
[1746739287694,4.51080337,2216.9,2215.0,0.8154]
[1746739287934,9.79862723,2217.1,2215.0,0.8154]
[1746739287935,0.1,2218.7,2215.4,3.0]
[1746739288101,20.73554193,2218.6,2216.2,3.0]
[1746739288303,4.50572226,2219.4,2216.7,3.55]
[1746739288505,4.50375642,2220.4,2218.4,0.55]
[1746739288728,4.50409872,2220.2,2217.9,3.0]
[1746739288892,16.228,2220.1,2218.0,3.0]
[1746739289093,4.5079209,2218.4,2217.5,0.8154]
[1746739289294,16.228,2218.9,2216.9,0.8154]
[1746739289529,16.228,2218.8,2216.9,0.8154]
[1746739289731,1.6228,2218.7,2216.9,0.8154]
[1746739289891,9.79862723,2218.6,2216.4,0.8035]
[1746739290092,16.228,2218.8,2216.4,0.8035]
[1746739290093,16.228,2218.8,2216.5,3.0]
[1746739290396,4.50750612,2218.6,2216.4,1.3035]
[1746739290596,16.228,2218.8,2216.4,1.3035]
[1746739290597,4.50764221,2218.5,2216.4,0.8035]
[1746739290791,16.231,2218.4,2216.4,0.8035]
[1746739291127,16.231,2218.4,2216.7,3.0]
[1746739291337,4.50949789,2217.6,2216.4,0.8035]
[1746739291558,16.231,2218.4,2215.6,3.0]
[1746739291559,4.50856627,2218.0,2215.6,3.0]
[1746739291698,10.82,2217.5,2215.7,0.7696]
[1746739291898,0.55,2217.4,2215.0,0.7696]
[1746739292123,20.61862723,2217.5,2215.0,0.7696]
[1746739292324,20.61862723,2217.5,2215.3,3.0]
[1746739292537,0.8164,2217.2,2215.0,0.7696]
[1746739292841,26.02962723,2217.1,2215.0,3.7696]
[1746739293041,16.231,2217.1,2215.0,0.7696]
[1746739293212,4.51090475,2216.9,2215.0,0.7696]
[1746739293396,16.231,2217.1,2215.6,4.51336379]
[1746739293627,16.231,2217.1,2215.0,3.7696]
[1746739293827,16.231,2217.1,2215.4,3.0]
[1746739294062,16.231,2217.1,2215.6,0.8122]
[1746739294377,16.231,2217.1,2215.8,3.0]
[1746739294752,0.00260019,2216.6,2215.6,0.8122]
[1746739295074,0.00260019,2216.6,2213.4,11.8459902]
[1746739295075,4.51256175,2216.1,2215.0,0.8122]
[1746739295231,4.51215117,2216.3,2215.0,0.8122]
[1746739295431,0.81900019,2216.6,2215.0,0.8122]
[1746739296045,0.81900019,2216.6,2215.2,3.0]
[1746739296251,0.81900019,2216.6,2215.0,0.8122]
[1746739296449,4.51161741,2216.5,2215.0,0.8122]
[1746739296646,0.81900019,2216.6,2215.0,0.8122]
[1746739296850,4.51195325,2216.4,2215.0,0.8122]
[1746739297053,16.236,2216.7,2215.0,3.8122]
[1746739297392,16.236,2216.7,2215.0,0.8122]
[1746739297732,16.236,2216.7,2215.2,3.0]
[1746739297961,5.3266073,2217.2,2215.2,3.0]
[1746739298141,16.241,2217.5,2216.3,4.51201877]
[1746739298342,16.241,2218.2,2216.4,0.55]
[1746739298553,16.241,2218.2,2216.4,3.0]
[1746739298769,16.241,2218.2,2216.8,0.55]
[1746739298988,16.241,2218.2,2217.4,0.7515]
[1746739299481,0.8096,2218.1,2216.1,0.7515]
[1746739299694,16.241,2218.2,2216.4,3.0]
[1746739299855,0.8259,2218.8,2216.7,3.0]
[1746739300042,16.24,2218.7,2216.9,0.55]
[1746739300247,16.24,2218.7,2216.8,0.7969]
[1746739300485,17.94659,2218.7,2216.8,0.7969]
[1746739300785,17.94659,2218.7,2216.5,3.0]
[1746739300786,16.24,2218.7,2216.5,3.0]
[1746739301086,16.24,2218.7,2216.2,3.0]
[1746739301286,16.24,2218.7,2216.1,0.7969]
[1746739301589,4.50755014,2218.5,2216.4,4.51176021]
[1746739301788,0.55,2218.2,2216.1,0.7969]
[1746739301992,4.50836301,2218.1,2216.1,5.30929868]
[1746739302195,4.50815976,2218.2,2216.1,0.7969]
[1746739302350,4.50967922,2217.5,2216.1,5.30919703]
[1746739302550,0.8259,2218.3,2216.2,3.0]
[1746739302551,17.0669,2218.3,2216.2,3.0]
[1746739302901,17.0669,2218.3,2216.5,7.51155763]
[1746739303055,17.0669,2218.3,2216.3,0.67969]
[1746739303255,0.8243,2218.2,2215.3,0.655]
[1746739303567,4.51388772,2215.4,2214.5,0.7972]
[1746739303771,4.51470656,2215.0,2214.5,0.7972]
[1746739304079,13.07472565,2215.4,2214.5,0.7972]
[1746739304283,16.241,2216.3,2214.5,0.7972]
[1746739304906,0.8243,2217.3,2215.4,0.7972]
[1746739305202,4.50789708,2218.4,2217.4,0.7972]
[1746739305409,16.241,2218.6,2217.1,0.7972]
[1746739305758,0.8243,2219.8,2218.4,4.50765606]
[1746739305961,4.50385707,2220.4,2218.4,4.50765606]
[1746739305962,16.245,2220.2,2218.4,1.21026561]
[1746739306259,5.4301016,2220.1,2217.6,0.7595]
[1746739306489,0.8258,2220.1,2217.7,3.0]
[1746739306801,4.50470741,2219.9,2217.7,3.0]
[1746739307005,4.50708324,2218.8,2217.6,0.7595]
[1746739307160,16.245,2220.0,2217.6,0.7595]
[1746739307512,0.8258,2218.7,2216.4,0.7595]
[1746739307796,4.51235528,2216.2,2215.7,0.7595]
[1746739308103,20.75670067,2216.5,2215.7,0.7595]
[1746739308262,10.83,2217.1,2215.0,0.7595]
[1746739308263,16.245,2216.4,2215.0,0.7595]
[1746739308464,16.245,2216.4,2215.1,3.0]
[1746739308713,16.245,2216.4,2215.0,0.7595]
[1746739308714,16.245,2216.4,2215.6,4.51335696]
[1746739308890,16.245,2216.4,2215.2,0.37595]
[1746739308891,20.75685494,2216.4,2215.2,0.37595]
[1746739309091,4.51309183,2215.8,2215.0,0.7595]
[1746739309291,4.51202454,2216.3,2215.0,0.7595]
[1746739309491,4.51222813,2216.2,2214.4,0.7595]
[1746739309692,16.245,2216.4,2214.4,0.7595]
[1746739310098,4.51332466,2215.7,2214.4,0.7595]
[1746739310291,4.51222813,2216.2,2214.4,0.7595]
[1746739310512,4.51407678,2215.3,2214.4,0.7595]
[1746739310724,16.244,2215.2,2214.4,0.7595]
[1746739311026,15.16208397,2215.1,2213.7,0.7832]
[1746739311382,4.51526797,2214.8,2213.7,0.7832]
[1746739311583,15.16208397,2215.1,2213.7,0.7832]
[1746739311792,15.16208397,2215.1,2214.6,4.51534585]
[1746739312085,4.51297955,2215.9,2214.9,3.0]
[1746739312306,4.51297955,2215.9,2214.8,5.33904422]
[1746739312307,16.249,2216.1,2214.8,0.824]
[1746739312481,4.51321807,2215.8,2214.9,4.51482221]
[1746739312683,4.51321807,2215.8,2214.8,3.824]
[1746739312881,16.249,2216.1,2214.9,0.87906505]
[1746739313193,16.249,2217.3,2215.0,0.824]
[1746739313382,16.249,2217.3,2215.9,0.824]
[1746739313583,16.249,2217.3,2216.2,3.0]
[1746739313818,4.51034499,2217.2,2215.9,0.824]
[1746739314020,4.51041459,2217.1,2216.2,4.51222813]
[1746739314179,4.56704643,2217.0,2216.0,4.51260386]
[1746739314505,0.05609781,2216.9,2215.3,0.824]